bitfinex/quotes_BTCUSD_20240803
["timestamp","ask_amount","ask_price","bid_price","bid_amount"]
[1722711677248,2.7167525,60301.0,60300.0,0.23433524]
[1722711677662,2.8916525,60301.0,60300.0,0.16800124]
[1722711678298,3.23725602,60301.0,60300.0,0.00215824]
[1722711678497,3.24625602,60301.0,60300.0,0.00215824]
[1722711678745,3.48425602,60301.0,60300.0,0.00215824]
[1722711678954,3.49825602,60301.0,60300.0,0.00215824]
[1722711679173,0.02837795,60291.0,60290.0,0.0929845]
[1722711679370,1.55693884,60291.0,60290.0,0.0929845]
[1722711679595,2.22038684,60291.0,60290.0,0.0929845]
[1722711679796,3.29416758,60291.0,60290.0,0.0929845]
[1722711680429,3.29416758,60291.0,60288.0,0.0005]
[1722711680430,0.19424495,60289.0,60288.0,5e-07]
[1722711680639,0.02837795,60288.0,60276.0,0.00933]
[1722711680877,1.82376957,60288.0,60276.0,0.00933]
[1722711681102,2.48724957,60288.0,60276.0,0.00933]
[1722711681547,2.46887162,60288.0,60276.0,0.00933]
[1722711681751,2.47887162,60288.0,60276.0,0.00933]
[1722711681960,2.06891363,60288.0,60276.0,0.01095205]
[1722711682179,2.09291363,60288.0,60276.0,0.01095205]
[1722711682389,2.09691363,60288.0,60280.0,0.16233]
[1722711682601,2.09691363,60288.0,60280.0,0.16395205]
[1722711682812,1.76517363,60288.0,60283.0,0.00162205]
[1722711683029,1.36149708,60288.0,60283.0,0.00162205]
[1722711683239,1.16766896,60288.0,60286.0,0.00223284]
[1722711683457,1.49937974,60288.0,60286.0,0.00223284]
[1722711683669,1.16763974,60288.0,60286.0,0.00223284]
[1722711683881,1.16763974,60288.0,60287.0,0.78567105]
[1722711683882,0.028,60288.0,60287.0,0.78567105]
[1722711684105,0.014,60288.0,60287.0,1.11741705]
[1722711684318,0.248,60312.0,60303.0,0.00162205]
[1722711684319,0.238,60312.0,60303.0,0.00162205]
[1722711684531,0.238,60312.0,60298.0,0.2771]
[1722711684532,0.009959,60305.0,60302.0,0.00162205]
[1722711684736,0.497487,60303.0,60302.0,0.00162205]
[1722711684941,0.497487,60303.0,60298.0,0.2771]
[1722711684942,0.165834,60301.0,60300.0,0.00162205]
[1722711685155,0.8292,60299.0,60298.0,0.2771]
[1722711685358,0.829267,60294.0,60293.0,0.12202205]
[1722711685579,0.165853,60294.0,60293.0,0.12202205]
[1722711685789,0.01,60310.0,60293.0,0.12202205]
[1722711685790,0.497517,60300.0,60299.0,0.15152205]
[1722711686006,1.1394048,60300.0,60299.0,0.15152205]
[1722711686218,1.1394048,60300.0,60299.0,0.15820163]
[1722711686425,1.1394048,60300.0,60296.0,0.00162205]
[1722711686426,0.3102138,60300.0,60296.0,0.00162205]
[1722711686627,0.497536,60297.0,60296.0,0.00162205]
[1722711686831,0.497544,60296.0,60295.0,0.00162205]
[1722711687036,0.497544,60296.0,60290.0,0.00162205]
[1722711687037,0.47596469,60296.0,60290.0,0.00162205]
[1722711687264,0.165864,60290.0,60289.0,0.00162205]
[1722711687499,0.829322,60290.0,60289.0,0.00162205]
[1722711687700,0.829337,60289.0,60288.0,0.12202205]
[1722711687946,1.161072,60289.0,60288.0,0.12202205]
[1722711688146,1.161072,60289.0,60287.0,0.15923]
[1722711688147,1.16109,60288.0,60287.0,0.15923]
[1722711688260,1.47135344,60288.0,60287.0,0.15923]
[1722711688464,1.47135344,60288.0,60287.0,0.16085205]
[1722711688660,1.47135344,60288.0,60287.0,0.15923]
[1722711689165,1.47135344,60288.0,60287.0,0.00933]
[1722711689525,1.16109,60288.0,60287.0,0.00933]
[1722711689767,1.47137742,60288.0,60287.0,0.00933]
[1722711690398,1.97886831,60288.0,60287.0,0.00933]
[1722711690507,2.15448792,60288.0,60287.0,0.00933]
[1722711690712,2.16648792,60288.0,60287.0,0.00933]
[1722711690917,2.49822792,60288.0,60287.0,0.00933]
[1722711691132,2.14648792,60288.0,60287.0,0.00933]
[1722711691634,2.06886831,60288.0,60287.0,0.00933]
[1722711691782,1.73712831,60288.0,60287.0,0.00933]
[1722711691990,1.66512831,60288.0,60287.0,0.00933]
[1722711692193,1.48537742,60288.0,60287.0,0.01095205]
[1722711692572,1.65112831,60288.0,60287.0,0.0176613]
[1722711692922,1.65112831,60288.0,60287.0,0.00933]
[1722711692923,1.66112831,60288.0,60287.0,0.00933]
[1722711693148,1.6511373,60288.0,60287.0,0.00933]
[1722711693353,1.9688773,60288.0,60287.0,0.00933]
[1722711693566,1.9928773,60288.0,60287.0,0.00933]
[1722711693775,2.0794874,60288.0,60287.0,0.00933]
[1722711694004,2.1754874,60288.0,60287.0,0.02933]
[1722711694198,2.35837281,60288.0,60287.0,0.02933]
[1722711694323,2.63098165,60288.0,60287.0,0.02933]
[1722711694926,2.23702653,60288.0,60287.0,0.02933]
[1722711695327,2.24701511,60288.0,60287.0,0.02933]
[1722711695538,2.39635932,60288.0,60287.0,0.02933]
[1722711695736,2.23301695,60288.0,60287.0,0.02933]
[1722711696180,1.90127442,60288.0,60287.0,0.02933]
[1722711696394,1.83373598,60288.0,60287.0,0.02933]
[1722711696625,1.66114062,60288.0,60287.0,0.02933]
[1722711696976,1.67514062,60288.0,60287.0,0.02933]
[1722711697619,1.64714062,60288.0,60287.0,0.02933]
[1722711697807,1.64714062,60288.0,60287.0,0.29963]
[1722711697989,1.67514062,60288.0,60287.0,0.29963]
[1722711698171,1.50938973,60288.0,60287.0,0.30125205]
[1722711698376,1.17764973,60288.0,60287.0,0.30125205]
[1722711698575,0.82192115,60288.0,60287.0,0.31027763]
[1722711698778,0.83592115,60288.0,60287.0,0.31027763]
[1722711698983,1.15366115,60288.0,60287.0,0.31027763]
[1722711699182,0.82192115,60288.0,60287.0,0.31027763]
[1722711699430,0.49018115,60288.0,60287.0,0.31027763]
[1722711699836,0.32424897,60288.0,60287.0,0.80789663]
[1722711700046,0.165854,60294.0,60293.0,0.00162205]
[1722711700245,0.31022545,60294.0,60293.0,0.15932205]
[1722711700414,0.52011384,60300.0,60293.0,0.15932205]
[1722711700415,0.331684,60299.0,60298.0,0.00162205]
[1722711700622,1.13940589,60299.0,60298.0,0.00162205]
[1722711701970,1.48508989,60299.0,60298.0,0.00162205]
[1722711702145,1.15340589,60299.0,60298.0,0.00162205]
[1722711702353,1.15340589,60299.0,60298.0,0.12412205]
[1722711702354,0.49003789,60299.0,60298.0,0.12412205]
[1722711702557,0.32419789,60299.0,60298.0,0.12412205]
[1722711702760,0.32419789,60299.0,60298.0,0.131833]
[1722711703010,0.014,60299.0,60298.0,0.289533]
[1722711703322,0.014,60299.0,60298.0,0.455375]
[1722711703557,0.028,60299.0,60298.0,0.289533]
[1722711704204,0.028,60299.0,60298.0,1.118745]
[1722711704414,0.51,60300.0,60298.0,0.455375]
[1722711704622,0.51,60300.0,60299.0,0.00162205]
[1722711705062,0.51,60300.0,60299.0,0.00933071]
[1722711705278,1.339185,60300.0,60299.0,0.00933071]
[1722711705483,1.83660989,60300.0,60299.0,0.00770866]
[1722711705685,1.83660989,60300.0,60298.0,0.1577]
[1722711705686,0.8292,60299.0,60298.0,0.1577]
[1722711705893,1.16088,60299.0,60298.0,0.1577]
[1722711706271,0.67575089,60300.0,60298.0,0.1577]
[1722711706272,0.675838,60300.0,60299.0,0.00162205]
[1722711706497,0.680838,60300.0,60299.0,0.00162205]
[1722711706634,1.344186,60300.0,60299.0,0.00162205]
[1722711707179,1.343186,60300.0,60299.0,0.00162205]
[1722711707380,1.36919017,60300.0,60299.0,0.00162205]
[1722711707696,1.51552366,60300.0,60299.0,0.00162205]
[1722711707927,1.343186,60300.0,60299.0,0.00162205]
[1722711708136,1.355186,60300.0,60299.0,0.00162205]
[1722711708355,1.363186,60300.0,60299.0,0.00162205]
[1722711708709,1.351186,60300.0,60299.0,0.00162205]
[1722711708910,1.019512,60300.0,60299.0,0.00162205]
[1722711709589,1.007512,60300.0,60299.0,0.00162205]
[1722711710115,1.027512,60300.0,60299.0,0.00162205]
[1722711710526,1.05351595,60300.0,60299.0,0.00162205]
[1722711711699,0.72184095,60300.0,60299.0,0.00162205]
[1722711712020,1.05351495,60300.0,60299.0,0.00933071]
[1722711712134,0.695837,60300.0,60299.0,0.00933071]
[1722711712336,1.19984934,60300.0,60299.0,0.00162205]
[1722711712842,0.695837,60300.0,60299.0,0.00162205]
[1722711713077,1.027511,60300.0,60299.0,0.00162205]
[1722711713195,1.027511,60300.0,60299.0,0.00933071]
[1722711713407,1.027511,60300.0,60299.0,0.00162205]
[1722711713974,0.695837,60300.0,60299.0,0.00162205]
[1722711714185,1.027511,60300.0,60299.0,0.00933071]
[1722711714731,0.695837,60300.0,60299.0,0.00933071]
[1722711715149,0.53,60300.0,60299.0,0.00933071]
[1722711715355,0.72184042,60300.0,60299.0,0.00933071]
[1722711715561,0.55600342,60300.0,60299.0,0.00933071]
[1722711715755,0.53,60300.0,60299.0,0.00933071]
[1722711717922,1.027511,60300.0,60299.0,0.00933071]
[1722711718130,0.695837,60300.0,60299.0,0.00933071]
[1722711718339,0.53,60300.0,60299.0,0.00162205]
[1722711718549,0.55600342,60300.0,60299.0,0.00933071]
[1722711719855,0.72184042,60300.0,60299.0,0.00933071]
[1722711720055,0.55600342,60300.0,60299.0,0.00933071]
[1722711720267,0.55600342,60300.0,60299.0,0.17517071]
[1722711720472,0.53,60300.0,60299.0,0.00933071]
[1722711720706,1.690859,60300.0,60299.0,0.00770866]
[1722711721044,1.690859,60300.0,60294.0,0.00162205]
[1722711721045,0.829255,60295.0,60294.0,0.00162205]
[1722711721259,0.70233527,60300.0,60290.0,0.00162205]
[1722711721260,0.08291805,60299.0,60290.0,0.00162205]
[1722711721501,0.49761,60288.0,60287.0,0.03095205]
[1722711721682,0.82935,60288.0,60287.0,0.03095205]
[1722711723492,0.51461,60288.0,60287.0,0.03095205]
[1722711723896,0.84635,60288.0,60287.0,0.03095205]
[1722711724101,1.1566097,60288.0,60287.0,0.02933]
[1722711724285,1.4803497,60288.0,60287.0,0.03095205]
[1722711724686,1.4873497,60288.0,60287.0,0.03095205]
[1722711725292,1.19410101,60288.0,60287.0,0.03095205]
[1722711725520,1.36648262,60288.0,60287.0,0.03095205]
[1722711725717,1.51238547,60288.0,60287.0,0.03095205]
[1722711725942,1.50538547,60288.0,60287.0,0.03095205]
[1722711726155,1.49738547,60288.0,60287.0,0.03095205]
[1722711726449,1.50938547,60288.0,60287.0,0.03095205]
[1722711726635,1.52238547,60288.0,60287.0,0.03095205]
[1722711726845,0.52716547,60288.0,60287.0,0.03095205]
[1722711727068,0.22337517,60288.0,60287.0,0.32085205]
[1722711727275,0.05101101,60288.0,60287.0,0.48672505]
[1722711727475,0.05101101,60288.0,60287.0,0.49505635]
[1722711727686,0.05101101,60288.0,60287.0,0.82680235]
[1722711727901,0.025,60288.0,60287.0,0.32918335]
[1722711728542,0.025,60288.0,60287.0,0.49505635]
[1722711728795,0.025,60288.0,60287.0,0.32918335]
[1722711728995,0.36323425,60288.0,60287.0,0.32918335]
[1722711729398,0.69497425,60288.0,60287.0,0.32918335]
[1722711729599,1.35845425,60288.0,60287.0,0.20058335]
[1722711729826,1.35846043,60288.0,60287.0,0.03928335]
[1722711729945,1.49635677,60288.0,60287.0,0.03928335]
[1722711730141,1.49635677,60288.0,60287.0,0.03095205]
[1722711731604,1.49635677,60288.0,60287.0,0.02933]
[1722711731806,1.82809677,60288.0,60287.0,0.02933]
[1722711732009,1.80309677,60288.0,60287.0,0.02933]
[1722711732211,1.81709677,60288.0,60287.0,0.02933]
[1722711732413,1.83109677,60288.0,60287.0,0.02933]
[1722711732802,1.81709677,60288.0,60287.0,0.02933]
[1722711733009,1.83109677,60288.0,60287.0,0.02933]
[1722711733235,1.69321924,60288.0,60287.0,0.02933]
[1722711733443,1.83113063,60288.0,60287.0,0.03095205]
[1722711733644,1.20309,60288.0,60287.0,0.03095205]
[1722711733869,1.5133931,60288.0,60287.0,0.02933]
[1722711734079,1.5133931,60288.0,60287.0,0.03095205]
[1722711734918,1.513388,60288.0,60287.0,0.03095205]
[1722711735092,1.51430101,60288.0,60287.0,0.03095205]
[1722711736317,0.85082101,60288.0,60287.0,0.03095205]
[1722711736517,0.8508069,60288.0,60287.0,0.03928335]
[1722711736721,1.04465079,60288.0,60287.0,0.03928335]
[1722711737030,1.04465079,60288.0,60287.0,0.03095205]
[1722711737415,1.51428989,60288.0,60287.0,0.03095205]
[1722711737627,1.18254989,60288.0,60287.0,0.03095205]
[1722711737805,1.51428989,60288.0,60287.0,0.02933]
[1722711738005,1.96924078,60288.0,60287.0,0.02933]
[1722711738397,2.32398078,60288.0,60287.0,0.02933]
[1722711738607,2.66572078,60288.0,60287.0,0.02933]
[1722711738811,1.38529795,60283.0,60282.0,0.0175223]
[1722711739009,2.50649377,60283.0,60282.0,0.0175223]
[1722711739222,3.00101417,60283.0,60282.0,0.0175223]
[1722711739429,2.95126177,60283.0,60282.0,0.0175223]
[1722711739840,2.61949377,60283.0,60282.0,0.0175223]
[1722711739964,2.45714614,60283.0,60282.0,0.0175223]
[1722711740164,2.62957021,60283.0,60282.0,0.0175223]
[1722711740408,2.63957021,60283.0,60282.0,0.0175223]
[1722711741316,2.62957021,60283.0,60282.0,0.0175223]
[1722711741555,2.23027021,60283.0,60282.0,0.0175223]
[1722711741727,2.20727021,60283.0,60282.0,0.01914435]
[1722711741974,2.21627021,60283.0,60282.0,0.01914435]
[1722711742164,2.21627021,60283.0,60282.0,0.0175223]
[1722711742619,1.75630221,60283.0,60282.0,0.01914435]
[1722711742770,1.75630221,60283.0,60282.0,0.0175223]
[1722711742978,2.08807021,60283.0,60282.0,0.0175223]
[1722711743181,1.75630221,60283.0,60282.0,0.0175223]
[1722711743383,1.64136296,60283.0,60282.0,0.0175223]
[1722711743615,1.7792894,60283.0,60282.0,0.0175223]
[1722711743857,1.7792894,60283.0,60282.0,0.01914435]
[1722711744067,1.77926832,60283.0,60282.0,0.01914435]
[1722711744482,1.77926832,60283.0,60282.0,0.0175223]
[1722711745109,1.78919644,60283.0,60282.0,0.0175223]
[1722711745316,2.12096444,60283.0,60282.0,0.0175223]
[1722711745994,1.78919644,60283.0,60282.0,0.0175223]
[1722711746546,2.65336444,60283.0,60282.0,0.0175223]
[1722711746954,2.34303501,60283.0,60282.0,0.0175223]
[1722711747156,2.65338982,60283.0,60282.0,0.0175223]
[1722711747769,2.25218982,60283.0,60282.0,0.0175223]
[1722711750447,1.81063501,60283.0,60282.0,0.0175223]
[1722711750665,1.81063501,60283.0,60282.0,0.46313035]
[1722711750666,0.019,60283.0,60282.0,0.46313035]
[1722711750952,0.019,60283.0,60282.0,0.79490335]
[1722711751189,0.019,60283.0,60282.0,0.30628333]
[1722711751606,0.516652,60283.0,60282.0,0.30628333]
[1722711751810,0.165884,60283.0,60282.0,0.18358333]
[1722711752015,1.0027943,60283.0,60282.0,0.18358333]
[1722711752231,1.0117943,60283.0,60282.0,0.18358333]
[1722711752437,1.14969702,60283.0,60282.0,0.18358333]
[1722711752646,1.14169702,60283.0,60282.0,0.18358333]
[1722711752860,1.47346502,60283.0,60282.0,0.18358333]
[1722711753257,1.48146502,60283.0,60282.0,0.18358333]
[1722711753459,1.47146502,60283.0,60282.0,0.18358333]
[1722711753884,0.31027702,60283.0,60282.0,0.18358333]
[1722711754087,0.31928791,60283.0,60282.0,0.18358333]
[1722711754507,0.18137532,60283.0,60282.0,0.18358333]
[1722711754717,0.017,60283.0,60282.0,0.68124233]
[1722711754924,0.017,60283.0,60282.0,1.31146622]
[1722711755135,0.00091301,60288.0,60287.0,0.01]
[1722711755339,0.00091301,60288.0,60287.0,1.11908705]
[1722711755539,0.00091301,60288.0,60287.0,1.62560952]
[1722711755748,0.00091301,60288.0,60287.0,1.96735552]
[1722711756366,0.00091301,60288.0,60287.0,1.96935552]
[1722711756571,0.51,60300.0,60299.0,1.44060205]
[1722711757095,0.51,60300.0,60299.0,1.62465457]
[1722711757360,0.51,60300.0,60299.0,1.62665457]
[1722711758124,0.512,60300.0,60299.0,1.62865457]
[1722711758530,0.51,60300.0,60299.0,1.62665457]
[1722711758730,0.51,60300.0,60299.0,1.61665457]
[1722711758931,0.512,60300.0,60299.0,1.62665457]
[1722711760099,0.512,60300.0,60299.0,0.29002368]
[1722711760401,0.53800106,60300.0,60299.0,0.29002368]
[1722711760616,0.53800106,60300.0,60299.0,0.78754368]
[1722711760830,0.53800106,60300.0,60299.0,0.79754368]
[1722711761037,0.53800106,60300.0,60299.0,1.12922368]
[1722711761248,0.53600106,60300.0,60299.0,1.12722368]
[1722711761445,0.53700106,60300.0,60299.0,1.12922368]
[1722711761656,0.53700106,60300.0,60299.0,1.11922368]
[1722711761869,0.53700106,60300.0,60299.0,1.29297457]
[1722711762078,0.511,60300.0,60299.0,1.29397457]
[1722711762277,0.512,60300.0,60299.0,1.29397457]
[1722711762457,0.511,60300.0,60299.0,1.29497457]
[1722711762720,0.512,60300.0,60299.0,1.29497457]
[1722711762916,0.512,60300.0,60299.0,1.29697457]
[1722711763235,0.512,60300.0,60299.0,1.62665457]
[1722711764097,0.512,60300.0,60299.0,1.9781346]
[1722711764320,0.512,60300.0,60299.0,1.6584546]
[1722711764535,0.512,60300.0,60299.0,1.6464546]
[1722711764742,0.512,60300.0,60299.0,1.6264546]
[1722711764944,0.512,60300.0,60299.0,1.2947746]
[1722711765273,0.512,60300.0,60299.0,0.16732368]
[1722711765710,1.009511,60300.0,60299.0,0.01192368]
[1722711765910,0.676837,60300.0,60299.0,0.00992368]
[1722711766116,0.511,60300.0,60299.0,0.00162205]
[1722711766312,0.511,60300.0,60299.0,0.00262205]
[1722711766731,1.459348,60300.0,60299.0,0.001]
[1722711766908,1.956859,60300.0,60299.0,0.00930163]
[1722711767039,2.47728389,60300.0,60299.0,0.001]
[1722711767239,2.71568389,60300.0,60299.0,0.001]
[1722711767491,2.71468389,60300.0,60299.0,0.001]
[1722711767689,3.31971273,60300.0,60299.0,0.001]
[1722711767893,3.32062574,60300.0,60299.0,0.001]
[1722711768206,3.32062574,60300.0,60294.0,0.00162205]
[1722711768207,1.160957,60295.0,60294.0,0.00162205]
[1722711768345,1.44970789,60295.0,60294.0,0.00162205]
[1722711768566,1.44970789,60295.0,60286.0,0.00162205]
[1722711768567,1.161111,60287.0,60286.0,0.00162205]
[1722711768752,1.184111,60287.0,60286.0,0.00162205]
[1722711770156,0.852365,60287.0,60286.0,0.00162205]
[1722711770847,0.852915,60287.0,60286.0,0.00162205]
[1722711771260,1.176661,60287.0,60286.0,0.00162205]
[1722711771387,0.844915,60287.0,60286.0,0.00162205]
[1722711771591,0.870915,60287.0,60286.0,0.00162205]
[1722711771834,0.856915,60287.0,60286.0,0.00162205]
[1722711772068,0.844915,60287.0,60286.0,0.00162205]
[1722711772275,0.8849254,60287.0,60286.0,0.00162205]
[1722711772605,0.8989254,60287.0,60286.0,0.00162205]
[1722711772811,0.8849254,60287.0,60286.0,0.00162205]
[1722711773011,0.8619254,60287.0,60286.0,0.00162205]
[1722711773218,0.835915,60287.0,60286.0,0.00162205]
[1722711773898,0.833915,60287.0,60286.0,0.00162205]
[1722711774321,0.829377,60286.0,60285.0,0.00162205]
[1722711774542,0.829377,60286.0,60282.0,0.0183523]
[1722711774543,0.82942,60283.0,60282.0,0.0183523]
[1722711774709,1.161188,60283.0,60282.0,0.0183523]
[1722711774938,1.161188,60283.0,60282.0,0.01997435]
[1722711775791,1.168188,60283.0,60282.0,0.01997435]
[1722711777044,1.34058441,60283.0,60282.0,0.01997435]
[1722711777241,1.34858441,60283.0,60282.0,0.01997435]
[1722711777401,1.176188,60283.0,60282.0,0.01997435]
[1722711777600,1.168188,60283.0,60282.0,0.01997435]
[1722711777808,0.172884,60283.0,60282.0,0.01997435]
[1722711778041,0.509652,60283.0,60282.0,0.02901333]
[1722711778270,0.509652,60283.0,60282.0,0.01997435]
[1722711778471,0.85342,60283.0,60282.0,0.01997435]
[1722711778697,0.509652,60283.0,60282.0,0.01997435]
[1722711779302,0.84142,60283.0,60282.0,0.01997435]
[1722711779542,0.85342,60283.0,60282.0,0.01997435]
[1722711779940,0.84142,60283.0,60282.0,0.11997435]
[1722711780101,0.85342,60283.0,60282.0,0.11997435]
[1722711780312,0.521652,60283.0,60282.0,0.11997435]
[1722711780740,0.509652,60283.0,60282.0,0.1183523]
[1722711780944,0.97382,60283.0,60282.0,0.11997435]
[1722711781163,1.14621168,60283.0,60282.0,0.11997435]
[1722711781363,0.197884,60283.0,60282.0,0.11997435]
[1722711781564,0.529652,60283.0,60282.0,0.11997435]
[1722711781766,0.187884,60283.0,60282.0,0.12901333]
[1722711781971,0.187884,60283.0,60282.0,0.11997435]
[1722711781972,0.531652,60283.0,60282.0,0.11997435]
[1722711782176,0.012,60283.0,60282.0,0.12901333]
[1722711782408,0.024,60283.0,60282.0,0.29231333]
[1722711782615,0.024,60283.0,60282.0,0.57886035]
[1722711782815,0.024,60283.0,60282.0,0.42201333]
[1722711782816,0.012,60283.0,60282.0,0.42201333]
[1722711782963,0.84142,60283.0,60282.0,0.12901333]
[1722711783163,0.85142,60283.0,60282.0,0.12901333]
[1722711783371,1.293588,60283.0,60282.0,0.12739128]
[1722711783565,1.293588,60283.0,60282.0,0.12901333]
[1722711783724,1.303588,60283.0,60282.0,0.11997435]
[1722711783926,1.97350108,60283.0,60282.0,0.1183523]
[1722711784130,2.46618786,60283.0,60282.0,0.1183523]
[1722711784333,2.12441986,60283.0,60282.0,0.1183523]
[1722711784583,2.05202567,60283.0,60282.0,0.1183523]
[1722711784748,2.22444228,60283.0,60282.0,0.1193523]
[1722711784961,2.0865235,60283.0,60282.0,0.1183523]
[1722711785150,2.71864618,60283.0,60282.0,0.1183523]
[1722711785520,2.72864617,60283.0,60282.0,0.1183523]
[1722711785693,2.39687817,60283.0,60282.0,0.1183523]
[1722711785898,2.41087902,60283.0,60282.0,0.1183523]
[1722711786097,2.23846241,60283.0,60282.0,0.1183523]
[1722711786471,2.25246241,60283.0,60282.0,0.1183523]
[1722711786842,2.23846241,60283.0,60282.0,0.1183523]
[1722711787245,2.11452923,60283.0,60282.0,0.1183523]
[1722711787461,2.2524671,60283.0,60282.0,0.1183523]
[1722711787861,2.2524671,60283.0,60282.0,0.11997435]
[1722711788325,1.61033889,60283.0,60282.0,0.11997435]
[1722711788532,1.69827523,60283.0,60282.0,0.11997435]
[1722711788758,1.56034797,60283.0,60282.0,0.11997435]
[1722711789102,1.38793889,60283.0,60282.0,0.11997435]
[1722711789305,1.56033756,60283.0,60282.0,0.11997435]
[1722711789718,1.69825865,60283.0,60282.0,0.11997435]
[1722711790125,1.56033756,60283.0,60282.0,0.11997435]
[1722711790335,1.69825925,60283.0,60282.0,0.1183523]
[1722711790503,2.03002725,60283.0,60282.0,0.1183523]
[1722711791801,2.03004546,60283.0,60282.0,0.1183523]
[1722711793107,2.03004546,60283.0,60282.0,0.11997435]
[1722711793656,2.03004546,60283.0,60282.0,0.1183523]
[1722711794051,2.03004546,60283.0,60282.0,0.11997435]
[1722711794251,2.03004546,60283.0,60282.0,0.1183523]
[1722711794414,2.03004546,60283.0,60282.0,0.11997435]
[1722711795156,2.03004546,60283.0,60282.0,0.1183523]
[1722711795381,2.03004253,60283.0,60282.0,0.11997435]
[1722711795586,2.03004253,60283.0,60282.0,0.1183523]
[1722711795796,2.03004354,60283.0,60282.0,0.11997435]
[1722711796012,2.03004354,60283.0,60282.0,0.1183523]
[1722711796126,2.03004354,60283.0,60282.0,0.11997435]
[1722711796532,1.69827554,60283.0,60282.0,0.11997435]
[1722711797013,1.69826011,60283.0,60282.0,0.11997435]
[1722711797347,1.50950922,60283.0,60282.0,0.11997435]
[1722711797756,1.50950922,60283.0,60282.0,0.12901333]
[1722711798712,1.50951208,60283.0,60282.0,0.12901333]
[1722711799475,1.50951208,60283.0,60282.0,0.11997435]
[1722711800072,1.50951208,60283.0,60282.0,0.1183523]
[1722711800274,1.74807833,60283.0,60282.0,0.1183523]
[1722711800616,1.77107833,60283.0,60282.0,0.1183523]
[1722711800816,1.77107833,60283.0,60282.0,0.11997435]
[1722711801219,1.58232744,60283.0,60282.0,0.11997435]
[1722711801663,1.50951208,60283.0,60282.0,0.11997435]
[1722711802004,1.58234663,60283.0,60282.0,0.11997435]
[1722711802206,1.50949952,60283.0,60282.0,0.11997435]
[1722711802409,1.53551275,60283.0,60282.0,0.11997435]
[1722711802609,1.60833932,60283.0,60282.0,0.11997435]
[1722711802820,1.53551275,60283.0,60282.0,0.11997435]
[1722711803261,1.60832804,60283.0,60282.0,0.11997435]
[1722711804529,1.60832804,60283.0,60282.0,0.1183523]
[1722711804732,1.79707893,60283.0,60282.0,0.1183523]
[1722711804852,2.66834784,60283.0,60282.0,0.1183523]
[1722711805708,2.66840411,60283.0,60282.0,0.1183523]
[1722711806124,2.66839916,60283.0,60282.0,0.1183523]
[1722711807475,2.66839916,60283.0,60280.0,0.00933]
[1722711807476,1.493005,60281.0,60280.0,0.00933]
[1722711807691,1.493005,60281.0,60277.0,0.00933]
[1722711807692,0.331796,60278.0,60277.0,0.00933]
[1722711807895,1.96074899,60278.0,60277.0,0.00933]
[1722711808105,2.60292775,60278.0,60277.0,0.00933]
[1722711808385,1.503104,60277.0,60276.0,1e-06]
[1722711808589,1.503104,60277.0,60264.0,0.00276205]
[1722711808590,0.829627,60268.0,60264.0,0.00114]
[1722711808805,0.829667,60265.0,60264.0,0.00114]
[1722711809019,0.331884,60262.0,60261.0,0.22988981]
[1722711809237,0.331884,60262.0,60250.0,0.15503999]
[1722711809238,0.01,60255.0,60250.0,0.15503999]
[1722711809435,0.01,60260.0,60250.0,0.0611644]
[1722711809436,1.37876,60251.0,60250.0,0.0611644]
[1722711809661,1.89971799,60251.0,60250.0,0.0291644]
[1722711809885,2.71296047,60251.0,60250.0,0.0291644]
[1722711810053,2.71296047,60251.0,60236.0,0.00026958]
[1722711810054,1.161902,60246.0,60239.0,0.01096205]
[1722711810266,1.8670815,60246.0,60241.0,0.00162205]
[1722711810473,1.8670815,60246.0,60239.0,0.00934]
[1722711810474,2.7159255,60246.0,60239.0,0.00934]
[1722711811185,1.503946,60243.0,60239.0,0.00934]
[1722711811390,2.43769285,60243.0,60239.0,0.00934]
[1722711811766,1.86710485,60243.0,60240.0,0.00162205]
[1722711811975,1.86710485,60243.0,60239.0,0.00934]
[1722711811976,2.19909285,60243.0,60239.0,0.00934]
[1722711812526,2.75861914,60243.0,60239.0,0.00934]
[1722711812713,3.46949947,60243.0,60242.0,0.03279777]
[1722711812952,0.01,60236.0,60235.0,0.19364391]
[1722711813150,1.52085075,60236.0,60235.0,0.19364391]
[1722711813278,2.8298762,60236.0,60235.0,0.17399238]
[1722711813625,3.1619032,60236.0,60235.0,0.16491391]
[1722711813827,2.8198762,60236.0,60235.0,0.16481391]
[1722711814289,2.6449762,60236.0,60235.0,0.16481391]
[1722711814494,2.6589762,60236.0,60235.0,0.16481391]
[1722711814715,2.6729762,60236.0,60235.0,0.16481391]
[1722711814923,1.92993781,60236.0,60235.0,0.16643596]
[1722711815116,1.69977342,60236.0,60235.0,0.16481391]
[1722711815331,0.93571942,60236.0,60235.0,0.16643596]
[1722711815478,0.42367942,60236.0,60235.0,0.24935401]
[1722711815679,0.25792853,60236.0,60235.0,0.25843248]
[1722711815879,0.25792853,60236.0,60235.0,0.17551443]
[1722711816094,0.25792853,60236.0,60235.0,0.25843248]
[1722711816296,0.25792853,60236.0,60235.0,1.38101248]
[1722711816467,0.25792853,60236.0,60235.0,1.72304448]
[1722711816468,0.028,60236.0,60235.0,1.72304448]
[1722711816661,0.028,60236.0,60235.0,1.03898048]
[1722711816976,0.014,60236.0,60235.0,1.71504448]
[1722711817195,0.00967456,60254.0,60250.0,0.00162205]
[1722711817196,0.165973,60251.0,60250.0,0.00162205]
[1722711817518,0.165973,60251.0,60235.0,0.54931043]
[1722711817519,0.497949,60247.0,60246.0,0.00162205]
[1722711817815,1.57152974,60247.0,60246.0,0.00162205]
[1722711817981,0.40988085,60247.0,60246.0,0.00162205]
[1722711818181,0.24389785,60247.0,60246.0,0.00162205]
[1722711818382,0.24389785,60247.0,60246.0,0.293171]
[1722711818589,0.24389785,60247.0,60246.0,0.28412205]
[1722711818815,0.40988085,60247.0,60246.0,0.293171]
[1722711818985,0.42388085,60247.0,60246.0,0.293171]
[1722711819201,0.15199592,60247.0,60246.0,0.293171]
[1722711819401,0.15198495,60247.0,60246.0,0.293171]
[1722711819768,0.31796795,60247.0,60246.0,0.293171]
[1722711819988,0.15198495,60247.0,60246.0,0.293171]
[1722711820235,0.15198495,60247.0,60246.0,0.45010805]
[1722711820471,0.14598495,60247.0,60246.0,0.459157]
[1722711820658,0.15298495,60247.0,60246.0,0.293171]
[1722711820855,0.14598495,60247.0,60246.0,0.293171]
[1722711821063,0.64393395,60247.0,60246.0,0.293171]
[1722711821258,0.64993395,60247.0,60246.0,0.28412205]
[1722711821416,0.97589995,60247.0,60246.0,0.293171]
[1722711821615,0.13798495,60247.0,60246.0,0.293171]
[1722711821811,0.14098495,60247.0,60246.0,0.293171]
[1722711822036,0.14498495,60247.0,60246.0,0.45010805]